bitfinex/quotes_BTCUSD_20250601
["timestamp","ask_amount","ask_price","bid_price","bid_amount"]
[1748739144759,0.98462493,104490.0,104480.0,0.32547852]
[1748739145050,0.98462493,104490.0,104480.0,0.31590741]
[1748739145254,0.98462493,104490.0,104480.0,0.32547852]
[1748739145486,0.98438493,104490.0,104480.0,0.31590741]
[1748739145773,0.98438493,104490.0,104480.0,0.30693593]
[1748739145976,0.98438493,104490.0,104480.0,0.31590741]
[1748739147275,0.98438493,104490.0,104480.0,0.30693593]
[1748739147558,0.98438493,104490.0,104480.0,0.31590741]
[1748739148712,0.98438493,104490.0,104480.0,0.30693593]
[1748739148948,0.98438493,104490.0,104480.0,0.31590741]
[1748739149217,0.98438493,104490.0,104480.0,0.32547852]
[1748739149673,0.98438493,104490.0,104480.0,0.32547853]
[1748739150425,0.98438493,104490.0,104480.0,0.31590742]
[1748739150829,0.98438493,104490.0,104480.0,0.31590743]
[1748739151502,0.98438493,104490.0,104480.0,0.30693593]
[1748739151706,0.98438493,104490.0,104480.0,0.31590743]
[1748739152345,0.98438493,104490.0,104480.0,0.32547854]
[1748739152542,0.98438493,104490.0,104480.0,0.31590744]
[1748739153163,0.98438493,104490.0,104480.0,0.31650704]
[1748739153408,0.98438493,104490.0,104480.0,0.31590744]
[1748739153607,0.98438493,104490.0,104480.0,0.31590745]
[1748739153773,0.98438493,104490.0,104480.0,0.32547856]
[1748739154023,0.98438493,104490.0,104480.0,0.31650704]
[1748739154350,1.00048493,104490.0,104480.0,0.3440211]
[1748739154552,1.00048493,104490.0,104480.0,0.33445008]
[1748739154691,1.01558493,104490.0,104480.0,0.33445008]
[1748739154905,1.01558493,104490.0,104480.0,0.34402111]
[1748739155126,1.01558493,104490.0,104480.0,0.33445009]
[1748739155536,1.01558493,104490.0,104480.0,0.3344501]
[1748739155783,0.47775876,104490.0,104480.0,0.65327448]
[1748739156066,0.47775876,104490.0,104480.0,0.3844915]
[1748739156067,0.78200832,104490.0,104480.0,0.3844915]
[1748739156313,0.78200832,104490.0,104480.0,0.3844906]
[1748739156565,0.77800832,104490.0,104480.0,0.3844906]
[1748739156798,0.77800832,104490.0,104480.0,0.38449054]
[1748739157010,0.78300832,104490.0,104480.0,0.37551996]
[1748739157198,0.78300832,104490.0,104480.0,0.38448524]
[1748739157412,0.78300832,104490.0,104480.0,0.40241581]
[1748739158022,0.78300832,104490.0,104480.0,0.40241571]
[1748739158477,0.78300832,104490.0,104480.0,0.40241551]
[1748739159013,0.79257806,104490.0,104480.0,0.37151551]
[1748739159252,0.79257806,104490.0,104480.0,0.37151148]
[1748739159489,0.79257806,104490.0,104480.0,0.37150947]
[1748739159735,0.79249806,104490.0,104480.0,0.37150947]
[1748739160379,0.79249806,104490.0,104480.0,0.37150812]
[1748739160945,0.79249806,104490.0,104480.0,0.34461996]
[1748739161345,0.79249806,104490.0,104480.0,0.3715021]
[1748739161550,0.79249806,104490.0,104480.0,0.36254107]
[1748739161749,0.79249806,104490.0,104480.0,0.37150162]
[1748739162108,0.79249806,104490.0,104480.0,0.34461996]
[1748739162520,0.40701806,104490.0,104480.0,0.34461996]
[1748739162755,0.79249806,104490.0,104480.0,0.34461996]
[1748739162890,0.79249806,104490.0,104480.0,0.36254072]
[1748739163307,0.79249806,104490.0,104480.0,0.3715011]
[1748739163921,0.79249806,104490.0,104480.0,0.37150074]
[1748739164116,0.79249806,104490.0,104480.0,0.34461996]
[1748739164261,0.79249806,104490.0,104480.0,0.37150056]
[1748739164855,0.79249806,104490.0,104480.0,0.36253997]
[1748739165040,0.79249806,104490.0,104480.0,0.37149923]
[1748739165240,0.82379806,104490.0,104480.0,0.37149774]
[1748739165443,0.83336798,104490.0,104480.0,0.37149774]
[1748739165583,0.82379806,104490.0,104480.0,0.37149774]
[1748739165788,0.82379806,104490.0,104480.0,0.36253848]
[1748739166023,0.82379806,104490.0,104480.0,0.37149547]
[1748739167177,0.82379806,104490.0,104480.0,0.34461996]
[1748739167392,0.82379806,104490.0,104480.0,0.37149366]
[1748739167792,0.82379806,104490.0,104480.0,0.37149315]
[1748739167957,0.82379806,104490.0,104480.0,0.37149284]
[1748739168396,0.82379806,104490.0,104480.0,0.37149223]
[1748739168771,0.82379806,104490.0,104480.0,0.34461996]
[1748739169243,0.82379806,104490.0,104480.0,0.37149117]
[1748739169475,0.80769806,104490.0,104480.0,0.37149117]
[1748739169856,0.80769806,104490.0,104480.0,0.3625341]
[1748739170000,0.80769806,104490.0,104480.0,0.37149092]
[1748739170797,0.82369806,104490.0,104480.0,0.3625208]
[1748739171163,0.82369806,104490.0,104480.0,0.34460666]
[1748739171345,0.82369806,104490.0,104480.0,0.36252001]
[1748739172003,0.82369806,104490.0,104480.0,0.34460666]
[1748739172220,0.82369806,104490.0,104480.0,0.36251991]
[1748739172431,0.81412832,104490.0,104480.0,0.36251991]
[1748739173076,0.82369806,104490.0,104480.0,0.36251997]
[1748739173787,0.82369806,104490.0,104480.0,0.36251984]
[1748739174045,0.82369806,104490.0,104480.0,0.36251989]
[1748739174452,0.82369806,104490.0,104480.0,0.36251988]
[1748739174830,0.82369806,104490.0,104480.0,0.36251991]
[1748739175000,0.81412832,104490.0,104480.0,0.33564984]
[1748739175310,0.82369797,104490.0,104480.0,0.36251998]
[1748739175671,0.80769797,104490.0,104480.0,0.36251998]
[1748739175991,0.79249797,104490.0,104480.0,0.36252034]
[1748739176532,0.80206771,104490.0,104480.0,0.36252034]
[1748739176737,0.80206771,104490.0,104480.0,0.36252089]
[1748739177355,0.80206771,104490.0,104480.0,0.36252135]
[1748739177702,0.79249797,104490.0,104480.0,0.36252247]
[1748739178772,0.79249797,104490.0,104480.0,0.36252345]
[1748739179631,0.79249797,104490.0,104480.0,0.3625244]
[1748739179836,0.79249797,104490.0,104480.0,0.36252532]
[1748739180180,0.80779797,104490.0,104480.0,0.36252532]
[1748739180427,0.81736771,104490.0,104480.0,0.35356683]
[1748739180648,0.81736771,104490.0,104480.0,0.36252548]
[1748739180864,0.82289797,104490.0,104480.0,0.36252608]
[1748739181070,0.82289797,104490.0,104480.0,0.3625276]
[1748739181279,0.82289797,104490.0,104480.0,0.36252759]
[1748739181538,0.82289797,104490.0,104480.0,0.36252775]
[1748739181686,0.82289797,104490.0,104480.0,0.36252853]
[1748739182319,0.82289797,104490.0,104480.0,0.36253041]
[1748739182541,0.82289797,104490.0,104480.0,0.36253345]
[1748739182762,0.82289797,104490.0,104480.0,0.35357257]
[1748739182962,0.82289797,104490.0,104480.0,0.36253393]
[1748739183810,0.82289797,104490.0,104480.0,0.36253531]
[1748739184038,0.52825797,104490.0,104480.0,0.36253531]
[1748739184263,0.82281797,104490.0,104480.0,0.36253531]
[1748739184689,0.82281797,104490.0,104480.0,0.36253809]
[1748739185005,0.81324832,104490.0,104480.0,0.36253809]
[1748739185407,0.81324832,104490.0,104480.0,0.33564984]
[1748739185614,0.81324832,104490.0,104480.0,0.36256018]
[1748739185722,0.81324832,104490.0,104480.0,0.36256016]
[1748739186193,0.79814832,104490.0,104480.0,0.36256015]
[1748739186381,0.79241806,104490.0,104480.0,0.36256015]
[1748739186583,0.79241797,104490.0,104480.0,0.36256015]
[1748739188109,0.79241797,104490.0,104480.0,0.36256012]
[1748739188713,0.79241797,104490.0,104480.0,0.36256009]
[1748739189725,0.78284832,104490.0,104480.0,0.36256009]
[1748739189929,0.78284832,104490.0,104480.0,0.34461992]
[1748739190135,0.78284832,104490.0,104480.0,0.36256015]
[1748739190371,0.78284832,104490.0,104480.0,0.36256018]
[1748739190919,0.78284832,104490.0,104480.0,0.33564984]
[1748739191118,0.78284832,104490.0,104480.0,0.36256023]
[1748739192078,0.78284832,104490.0,104480.0,0.3535901]
[1748739192286,0.78284832,104490.0,104480.0,0.34461997]
[1748739192442,0.78284832,104490.0,104480.0,0.36256024]
[1748739192643,0.78284832,104490.0,104480.0,0.35359011]
[1748739192980,0.78284832,104490.0,104480.0,0.36256024]
[1748739193761,0.78284832,104490.0,104480.0,0.34461997]
[1748739193972,0.78284832,104490.0,104480.0,0.36256024]
[1748739194447,0.78284832,104490.0,104480.0,0.34461997]
[1748739194583,0.78284832,104490.0,104480.0,0.36256024]
[1748739196654,0.78284832,104490.0,104480.0,0.36256028]
[1748739197156,0.78284832,104490.0,104480.0,0.36256035]
[1748739197530,0.78284832,104490.0,104480.0,0.36256033]
[1748739198144,0.78284832,104490.0,104480.0,0.36256037]
[1748739199335,0.78284832,104490.0,104480.0,0.36256047]
[1748739199735,0.78284832,104490.0,104480.0,0.34462005]
[1748739199894,0.78284832,104490.0,104480.0,0.36256054]
[1748739200267,0.78284832,104490.0,104480.0,0.35359033]
[1748739200481,0.78284832,104490.0,104480.0,0.36256057]
[1748739201799,0.78284832,104490.0,104480.0,0.34462008]
[1748739202019,0.78284832,104490.0,104480.0,0.33564984]
[1748739202228,0.68243876,104490.0,104480.0,0.36256092]
[1748739202438,0.69200822,104490.0,104480.0,0.36256092]
[1748739203050,0.69200822,104490.0,104480.0,0.3446202]
[1748739203264,0.69200822,104490.0,104480.0,0.3625611]
[1748739203451,0.69200822,104490.0,104480.0,0.3625614]
[1748739203808,0.69200822,104490.0,104480.0,0.36256164]
[1748739205588,0.78280822,104490.0,104480.0,0.36256164]
[1748739206200,0.47867876,104490.0,104480.0,0.36256164]
[1748739206408,0.77315876,104490.0,104480.0,0.36256164]
[1748739207227,0.77315876,104490.0,104480.0,0.36679672]
[1748739207431,0.77315876,104490.0,104480.0,0.33988492]
[1748739207635,0.77315876,104490.0,104480.0,0.36679672]
[1748739209180,0.77315876,104490.0,104480.0,0.34885552]
[1748739209377,0.77315876,104490.0,104480.0,0.35782612]
[1748739209582,0.77315876,104490.0,104480.0,0.33988492]
[1748739209737,0.77315876,104490.0,104480.0,0.36679672]
[1748739210529,0.77315876,104490.0,104480.0,0.33988492]
[1748739210733,0.77315876,104490.0,104480.0,0.36679673]
[1748739210947,0.77315876,104490.0,104480.0,0.35782631]
[1748739211551,0.77315876,104490.0,104480.0,0.35782632]
[1748739212154,0.77315876,104490.0,104480.0,0.34885571]
[1748739212360,0.77315876,104490.0,104480.0,0.3309145]
[1748739212559,0.78272832,104490.0,104480.0,0.3309145]
[1748739212803,0.77315876,104490.0,104480.0,0.34885571]
[1748739212979,0.78272822,104490.0,104480.0,0.35782633]
[1748739214185,0.79229778,104490.0,104480.0,0.35782633]
[1748739214397,0.79229778,104490.0,104480.0,0.3309145]
[1748739214809,0.79229778,104490.0,104480.0,0.35782636]
[1748739215179,0.79229778,104490.0,104480.0,0.33988512]
[1748739215407,0.79229778,104490.0,104480.0,0.35782637]
[1748739215785,0.79229778,104490.0,104480.0,0.34885575]
[1748739215944,0.79229778,104490.0,104480.0,0.33620924]
[1748739216152,0.79229778,104490.0,104480.0,0.34517986]
[1748739216585,0.79229778,104490.0,104480.0,0.33620924]
[1748739216783,0.79229778,104490.0,104480.0,0.35415049]
[1748739216996,0.79229778,104490.0,104480.0,0.34517986]
[1748739217602,0.79229778,104490.0,104480.0,0.33620924]
[1748739217784,0.79229778,104490.0,104480.0,0.34517987]
[1748739217925,0.79229778,104490.0,104480.0,0.33620924]
[1748739218131,0.79229778,104490.0,104480.0,0.36312113]
[1748739218389,0.79229778,104490.0,104480.0,0.34517987]
[1748739218623,0.79229778,104490.0,104480.0,0.36312114]
[1748739218961,0.79229778,104490.0,104480.0,0.36312115]
[1748739219239,0.79229778,104490.0,104480.0,0.34517988]
[1748739219432,0.79229778,104490.0,104480.0,0.36312116]
[1748739219562,0.80186752,104490.0,104480.0,0.36312116]
[1748739220617,0.80186752,104490.0,104480.0,0.33620924]
[1748739221903,0.80186752,104490.0,104480.0,0.35415073]
[1748739222079,0.80186752,104490.0,104480.0,0.33620924]
[1748739222691,0.80186752,104490.0,104480.0,0.35415074]
[1748739222898,0.80186752,104490.0,104480.0,0.33620924]
[1748739223091,0.80186752,104490.0,104480.0,0.35415075]
[1748739223306,0.80186752,104490.0,104480.0,0.33620924]
[1748739223501,0.80186752,104490.0,104480.0,0.34517999]
[1748739223711,0.80186752,104490.0,104480.0,0.33620924]
[1748739224519,0.80186752,104490.0,104480.0,0.34517926]
[1748739224693,0.80186752,104490.0,104480.0,0.35414924]
[1748739225003,0.80186752,104490.0,104480.0,0.33620924]
[1748739225700,0.83496752,104490.0,104480.0,0.35414919]
[1748739225901,0.83496752,104490.0,104480.0,0.33620924]
[1748739226157,0.84453744,104490.0,104480.0,0.33620924]
[1748739226377,0.83496752,104490.0,104480.0,0.33620924]
[1748739226979,0.83496752,104490.0,104480.0,0.34517918]
[1748739227191,0.83496752,104490.0,104480.0,0.35414913]
[1748739227426,0.83496752,104490.0,104480.0,0.33620924]
[1748739227602,0.83496752,104490.0,104480.0,0.34517918]
[1748739227909,0.83496752,104490.0,104480.0,0.34517916]
[1748739228064,0.83496752,104490.0,104480.0,0.33620924]
[1748739228475,0.83496752,104490.0,104480.0,0.35414903]
[1748739228675,0.83496752,104490.0,104480.0,0.33620924]
[1748739229263,0.83496752,104490.0,104480.0,0.35414903]
[1748739229474,0.83496752,104490.0,104480.0,0.33620924]
[1748739229678,0.80186752,104490.0,104480.0,0.33620924]
[1748739230894,0.83356752,104490.0,104480.0,0.34517907]
[1748739231026,0.83356752,104490.0,104480.0,0.33620924]
[1748739231221,0.82399778,104490.0,104480.0,0.33620924]
[1748739231512,0.83356752,104490.0,104480.0,0.35414882]
[1748739231967,0.83356752,104490.0,104480.0,0.34517903]
[1748739232173,0.83356752,104490.0,104480.0,0.35414882]
[1748739232376,0.83356752,104490.0,104480.0,0.33620924]
[1748739232584,0.83356752,104490.0,104480.0,0.34517898]
[1748739233432,1.11748589,104490.0,104480.0,0.32483476]
[1748739233604,1.11748589,104490.0,104480.0,0.30689538]
[1748739233605,1.02497467,104490.0,104480.0,0.30689538]
[1748739233960,1.02497467,104490.0,104480.0,0.10650134]
[1748739233961,1.00583492,104490.0,104480.0,0.10650134]
[1748739234165,1.10168922,104490.0,104480.0,0.10650134]
[1748739234645,1.19420044,104490.0,104480.0,0.11547235]
[1748739234795,1.19420044,104490.0,104480.0,0.1012066]
[1748739234995,1.19420044,104490.0,104480.0,0.1101777]
[1748739235183,1.19420044,104490.0,104480.0,0.1012066]
[1748739235380,1.19420044,104490.0,104480.0,0.1101777]
[1748739235579,1.19420044,104490.0,104480.0,0.1281197]
[1748739235844,1.19420044,104490.0,104480.0,0.11017763]
[1748739235991,1.19420044,104490.0,104480.0,0.1012066]
[1748739236399,1.10168922,104490.0,104480.0,0.1012066]
[1748739236607,1.10168922,104490.0,104480.0,0.12811931]
[1748739236805,1.10168922,104490.0,104480.0,0.1012066]
[1748739236995,1.10168922,104490.0,104480.0,0.11914841]
[1748739237192,1.10168922,104490.0,104480.0,0.1012066]
[1748739237441,1.10168922,104490.0,104480.0,0.11914841]
[1748739237765,1.10168922,104490.0,104480.0,0.12811942]
[1748739237889,1.08548922,104490.0,104480.0,0.1012066]
[1748739238084,1.08548922,104490.0,104480.0,0.12388408]
[1748739238085,1.06998922,104490.0,104480.0,0.12388408]
[1748739238375,1.14095888,104490.0,104480.0,0.09697152]
[1748739238530,1.14095888,104490.0,104480.0,0.12388426]
[1748739238729,1.14095888,104490.0,104480.0,0.10594245]
[1748739238953,1.14095888,104490.0,104480.0,0.12388447]
[1748739239209,1.14095888,104490.0,104480.0,0.11491349]
[1748739239415,1.14095888,104490.0,104480.0,0.09697152]
[1748739239625,0.84647888,104490.0,104480.0,0.11491351]
[1748739239829,0.84647888,104490.0,104480.0,0.09697152]
[1748739239830,1.14079888,104490.0,104480.0,0.09697152]
[1748739240023,1.14079888,104490.0,104480.0,0.10594251]
[1748739240228,1.14079888,104490.0,104480.0,0.09697152]
[1748739240415,1.14079888,104490.0,104480.0,0.10594238]
[1748739240854,1.14079888,104490.0,104480.0,0.09697152]
[1748739241061,1.14079888,104490.0,104480.0,0.10594238]
[1748739241265,1.14079888,104490.0,104480.0,0.12388411]
[1748739241542,1.14079888,104490.0,104480.0,0.11491284]
[1748739241750,1.14079888,104490.0,104480.0,0.09697152]
[1748739242162,1.14079888,104490.0,104480.0,0.11491284]
[1748739242374,1.14079888,104490.0,104480.0,0.09697152]
[1748739243087,1.14079888,104490.0,104480.0,0.10594218]
[1748739243227,1.14079888,104490.0,104480.0,0.09697152]
[1748739243835,1.14079888,104490.0,104480.0,0.12388267]
[1748739244069,1.14079888,104490.0,104480.0,0.11491229]
[1748739244407,1.14079888,104490.0,104480.0,0.14182344]
[1748739244610,1.14079888,104490.0,104480.0,0.15976421]
[1748739244820,1.14079888,104490.0,104480.0,0.13285306]
[1748739245025,1.14079888,104490.0,104480.0,0.15079383]
[1748739245240,1.14079888,104490.0,104480.0,0.15976289]
[1748739245865,1.14079888,104490.0,104480.0,0.15976306]
[1748739246451,1.14079888,104490.0,104480.0,0.15976308]
[1748739246874,1.14079888,104490.0,104480.0,0.17536308]
[1748739247055,1.14079888,104490.0,104480.0,0.14845306]
[1748739247256,1.14079888,104490.0,104480.0,0.13285306]
[1748739251536,1.14079888,104490.0,104480.0,0.16405306]
[1748739253227,1.06982922,104490.0,104480.0,0.16405306]
[1748739254007,0.77550922,104490.0,104480.0,0.16405306]
[1748739254178,1.06978922,104490.0,104480.0,0.16405306]
[1748739254991,1.06978922,104490.0,104480.0,0.17302549]
[1748739255256,1.06978922,104490.0,104480.0,0.16405306]
[1748739255672,1.16230044,104490.0,104480.0,0.16405306]
[1748739255941,1.16230044,104490.0,104480.0,0.19097038]
[1748739256198,1.16230044,104490.0,104480.0,0.19097045]
[1748739256469,1.16230044,104490.0,104480.0,0.16405306]
[1748739257390,1.16230044,104490.0,104480.0,0.18199798]
[1748739257639,1.16230044,104490.0,104480.0,0.16405306]
[1748739257760,1.16230044,104490.0,104480.0,0.18199798]
[1748739258002,1.16230044,104490.0,104480.0,0.16405306]
[1748739260225,1.16230044,104490.0,104480.0,0.18199794]
[1748739260448,1.16230044,104490.0,104480.0,0.16405306]
[1748739260660,1.16230044,104490.0,104480.0,0.1730255]
[1748739261078,1.16230044,104490.0,104480.0,0.16405306]
[1748739261286,1.16230044,104490.0,104480.0,0.17302555]
[1748739261703,1.16230044,104490.0,104480.0,0.16405306]
[1748739262132,1.03478921,104490.0,104480.0,0.18199791]
[1748739262343,1.03478921,104490.0,104480.0,0.16405306]
[1748739262492,1.03478921,104490.0,104480.0,0.17302548]
[1748739262907,1.03478921,104490.0,104480.0,0.16405306]
[1748739263112,1.03478921,104490.0,104480.0,0.18199792]
[1748739263333,1.03478921,104490.0,104480.0,0.16405306]
[1748739263710,1.37478921,104490.0,104480.0,0.18199791]
[1748739263913,1.49184128,104490.0,104480.0,0.16405306]
[1748739264288,1.52058228,104490.0,104480.0,0.16405306]
[1748739265340,1.54007859,104490.0,104480.0,0.16405306]
[1748739271054,1.54007859,104490.0,104480.0,0.14845306]
[1748739271413,1.54007859,104490.0,104480.0,0.13285306]
[1748739272212,1.59007859,104490.0,104480.0,0.13285306]
[1748739274223,1.58007859,104490.0,104480.0,0.13285306]
[1748739274431,1.64616568,104490.0,104480.0,0.13285306]
[1748739277332,1.59616568,104490.0,104480.0,0.13285306]
[1748739277501,1.59617246,104490.0,104480.0,0.12642306]
[1748739277698,1.59617246,104490.0,104480.0,0.11848307]
[1748739280439,1.61217246,104490.0,104480.0,0.11848307]
[1748739280775,1.62747246,104490.0,104480.0,0.11848307]
[1748739281042,1.62747246,104490.0,104480.0,0.10951155]
[1748739281606,1.67747246,104490.0,104480.0,0.10951155]
[1748739281948,1.62747246,104490.0,104480.0,0.10951155]
[1748739282176,1.67747246,104490.0,104480.0,0.10951155]
[1748739282798,2.17277246,104490.0,104480.0,0.05848725]
[1748739283013,2.12277246,104490.0,104480.0,0.02858401]
[1748739283218,2.12277246,104490.0,104480.0,0.00746295]
[1748739283428,0.22255001,104460.0,104450.0,0.0312]
[1748739283604,0.74705924,104460.0,104450.0,0.0312]
[1748739283852,1.09493799,104460.0,104450.0,0.0312]
[1748739284268,1.08299425,104460.0,104450.0,0.0312]
[1748739284686,1.09280649,104460.0,104450.0,0.0312]
[1748739285225,1.09280649,104460.0,104450.0,0.0156]
[1748739286329,1.09280649,104460.0,104450.0,0.02557487]
[1748739286535,1.09280649,104460.0,104450.0,0.0322]
[1748739286940,1.09280649,104460.0,104450.0,0.04117487]
[1748739287079,1.09280649,104460.0,104450.0,0.0322]
[1748739287279,1.09280649,104460.0,104450.0,0.04117487]
[1748739287533,1.09280649,104460.0,104450.0,0.05014974]
[1748739287733,1.09280649,104460.0,104450.0,0.04117487]
[1748739287953,1.09280649,104460.0,104450.0,0.05014974]
[1748739288181,1.09280649,104460.0,104450.0,0.04117487]
[1748739288431,1.50636649,104460.0,104450.0,0.04117487]
[1748739288646,1.50636649,104460.0,104450.0,0.0501501]
[1748739288875,1.50636649,104460.0,104450.0,0.04117487]
[1748739289093,1.50636649,104460.0,104450.0,0.05014993]
[1748739289308,1.50636649,104460.0,104450.0,0.05014992]
[1748739289560,1.50636649,104460.0,104450.0,0.04117487]
[1748739289780,1.50636649,104460.0,104450.0,0.05014993]
[1748739290039,1.50636649,104460.0,104450.0,0.05014992]
[1748739290272,1.50636649,104460.0,104450.0,0.04117487]
[1748739290718,1.87090734,104460.0,104450.0,0.04117487]
[1748739290930,1.87090734,104460.0,104450.0,0.03455011]
[1748739291182,1.87090734,104460.0,104450.0,0.02557487]
[1748739291599,1.87090734,104460.0,104450.0,0.03455044]
[1748739291797,1.89965634,104460.0,104450.0,0.02557487]
[1748739292422,1.89965634,104460.0,104450.0,0.01895042]
[1748739292635,1.89965634,104460.0,104450.0,0.00997487]
[1748739293453,1.89965634,104460.0,104450.0,0.01895043]
[1748739293659,1.89965634,104460.0,104450.0,0.00997487]
[1748739295732,1.60545634,104460.0,104450.0,0.00997487]
[1748739295913,1.89965634,104460.0,104450.0,0.00997487]
[1748739296293,1.93155634,104460.0,104450.0,0.00997487]
[1748739296559,1.93155634,104460.0,104450.0,0.01895041]
[1748739296748,1.93155634,104460.0,104450.0,0.00997487]
[1748739297662,1.93155634,104460.0,104450.0,0.01895044]
[1748739297869,1.93155634,104460.0,104450.0,0.00997487]
[1748739298084,1.93155634,104460.0,104450.0,0.01895045]
[1748739298298,1.93155634,104460.0,104450.0,0.00897487]
[1748739298516,1.93255634,104460.0,104450.0,0.00897487]
[1748739298719,1.93355634,104460.0,104450.0,0.00897487]
[1748739300588,1.93355634,104460.0,104450.0,0.01795044]
[1748739300812,1.93355634,104460.0,104450.0,0.00897487]
[1748739301672,1.93355634,104460.0,104450.0,0.01795044]
[1748739301875,1.97355634,104460.0,104450.0,0.00897487]
[1748739302276,2.03951376,104460.0,104450.0,0.00897487]
[1748739302401,2.03851376,104460.0,104450.0,0.00897487]
[1748739302595,1.97255634,104460.0,104450.0,0.00897487]
[1748739302819,1.97355634,104460.0,104450.0,0.00897487]
[1748739303223,1.97855634,104460.0,104450.0,0.00997487]
[1748739303872,1.97655634,104460.0,104450.0,0.00997487]
[1748739304518,1.97651634,104460.0,104450.0,0.00997487]
[1748739305190,1.98751634,104460.0,104450.0,0.01097487]
[1748739312370,2.48281634,104460.0,104450.0,0.01097487]
[1748739314701,2.49281634,104460.0,104450.0,0.01097487]
[1748739315108,2.44281634,104460.0,104450.0,0.01097487]
[1748739315485,2.49281634,104460.0,104450.0,0.01097487]
[1748739316113,2.19861634,104460.0,104450.0,0.01097487]
[1748739316329,2.15476141,104460.0,104450.0,0.01097487]
[1748739316615,2.44896141,104460.0,104450.0,0.01097487]
[1748739321939,2.41706141,104460.0,104450.0,0.01097487]
[1748739323128,2.06304917,104460.0,104450.0,0.01097487]
[1748739323347,2.07430017,104460.0,104450.0,0.01097487]
[1748739323555,2.37894017,104460.0,104450.0,0.01097487]
[1748739324199,2.40209353,104460.0,104450.0,0.01097487]
[1748739324918,2.10745353,104460.0,104450.0,0.01097487]
[1748739325233,2.35209353,104460.0,104450.0,0.01097487]
[1748739325435,2.40209353,104460.0,104450.0,0.01097487]
[1748739325861,2.35209353,104460.0,104450.0,0.01097487]
[1748739329433,2.35189353,104460.0,104450.0,0.01995053]
[1748739329961,2.36779353,104460.0,104450.0,0.01097487]
[1748739330348,2.38409353,104460.0,104450.0,0.01097487]
[1748739330551,2.38409353,104460.0,104450.0,0.0199503]
[1748739330871,2.38409353,104460.0,104450.0,0.01097487]
[1748739331081,2.35189353,104460.0,104450.0,0.01097487]
[1748739331275,2.35189353,104460.0,104450.0,0.01995026]
[1748739331587,2.38389353,104460.0,104450.0,0.01995025]
[1748739331709,2.38389353,104460.0,104450.0,0.01097487]
[1748739332864,1.88859353,104460.0,104450.0,0.01097487]
[1748739333085,1.88859353,104460.0,104450.0,0.01994449]
[1748739333300,1.88859353,104460.0,104450.0,0.01994447]
[1748739333488,1.88859353,104460.0,104450.0,0.01097487]
[1748739336081,1.88859353,104460.0,104450.0,0.01994449]
[1748739336364,1.88859353,104460.0,104450.0,0.01097487]
[1748739336571,1.88859353,104460.0,104450.0,0.01994449]
[1748739336813,1.88859353,104460.0,104450.0,0.01097487]
[1748739337399,1.88859353,104460.0,104450.0,0.01994447]
[1748739337606,1.88859353,104460.0,104450.0,0.01097487]
[1748739339515,1.86544017,104460.0,104450.0,0.01097487]
[1748739339900,1.86544017,104460.0,104450.0,0.01994446]
[1748739340097,1.86544017,104460.0,104450.0,0.01097487]
[1748739340302,1.86544017,104460.0,104450.0,0.01994448]
[1748739340773,1.86544017,104460.0,104450.0,0.02891409]
[1748739341294,1.86544017,104460.0,104450.0,0.01994448]
[1748739341510,1.84914017,104460.0,104450.0,0.01994448]
[1748739341706,1.84914017,104460.0,104450.0,0.02891409]
[1748739341919,1.83344017,104460.0,104450.0,0.01994448]
[1748739343410,1.81889932,104460.0,104450.0,0.01994448]
[1748739344104,1.81889932,104460.0,104450.0,0.02891409]
[1748739344310,1.81869932,104460.0,104450.0,0.01994448]
[1748739344763,1.81869932,104460.0,104450.0,0.02891409]
[1748739344985,1.79955389,104460.0,104450.0,0.01994448]
[1748739345207,1.79955389,104460.0,104450.0,0.0289141]
[1748739345443,1.79955389,104460.0,104450.0,0.01994448]
[1748739345667,1.52453932,104460.0,104450.0,0.01994448]
[1748739345879,1.80309932,104460.0,104450.0,0.01994448]
[1748739346318,1.80309932,104460.0,104450.0,0.02891408]
[1748739346541,1.79309932,104460.0,104450.0,0.02891405]
[1748739346766,1.79309932,104460.0,104450.0,0.01994448]
[1748739346980,1.79309932,104460.0,104450.0,0.02891404]
[1748739347199,1.79309932,104460.0,104450.0,0.01994448]
[1748739347641,1.79309932,104460.0,104450.0,0.02891403]
[1748739347837,1.79309932,104460.0,104450.0,0.01994448]
[1748739348813,1.79309932,104460.0,104450.0,0.02891398]
[1748739349073,1.79309932,104460.0,104450.0,0.03788348]
[1748739349288,1.79309932,104460.0,104450.0,0.03788347]
[1748739349706,1.79309932,104460.0,104450.0,0.02891398]
[1748739350505,1.79309932,104460.0,104450.0,0.03788348]
[1748739351121,1.79309932,104460.0,104450.0,0.02891398]
[1748739351357,1.79309932,104460.0,104450.0,0.03788349]
[1748739351709,1.79309932,104460.0,104450.0,0.02891398]
[1748739352670,1.79309932,104460.0,104450.0,0.03788349]
[1748739352899,1.79309932,104460.0,104450.0,0.02891398]
[1748739353344,1.79309932,104460.0,104450.0,0.03788349]
[1748739353784,1.79309932,104460.0,104450.0,0.02891398]
[1748739353965,1.79309932,104460.0,104450.0,0.03788349]
[1748739354109,1.79309932,104460.0,104450.0,0.02891398]
[1748739355140,1.79309932,104460.0,104450.0,0.03788349]
[1748739355383,1.79309932,104460.0,104450.0,0.02891398]
[1748739355872,1.79309932,104460.0,104450.0,0.03788349]
[1748739356072,1.79309932,104460.0,104450.0,0.02891398]
[1748739357336,1.79309932,104460.0,104450.0,0.03788221]
[1748739357738,1.79309932,104460.0,104450.0,0.02891398]
[1748739358729,1.79309932,104460.0,104450.0,0.03788941]
[1748739358930,1.79309932,104460.0,104450.0,0.02891398]
[1748739359953,1.79309932,104460.0,104450.0,0.03788941]
[1748739360626,1.79309932,104460.0,104450.0,0.02691398]
[1748739360627,1.77709932,104460.0,104450.0,0.02691398]
[1748739360846,1.77709932,104460.0,104450.0,0.03588942]
[1748739361037,1.77709932,104460.0,104450.0,0.02691398]
[1748739362541,1.77709932,104460.0,104450.0,0.03588942]
[1748739362985,1.77709932,104460.0,104450.0,0.02691398]
[1748739363715,1.77709932,104460.0,104450.0,0.03588943]
[1748739364588,1.86961054,104460.0,104450.0,0.03588943]
[1748739364815,1.86961054,104460.0,104450.0,0.04486495]
[1748739365017,1.86961054,104460.0,104450.0,0.03588943]
[1748739365499,1.86961054,104460.0,104450.0,0.04486498]
[1748739365725,1.86961054,104460.0,104450.0,0.04486497]
[1748739366178,1.86961054,104460.0,104450.0,0.03588943]
[1748739366393,1.86961054,104460.0,104450.0,0.04486497]
[1748739366832,1.86961054,104460.0,104450.0,0.03588943]
[1748739367819,1.86961054,104460.0,104450.0,0.03588943]
[1748739368282,1.86961054,104460.0,104450.0,0.04486497]
[1748739368544,1.86961054,104460.0,104450.0,0.03588943]
[1748739369640,1.86961054,104460.0,104450.0,0.04486496]
[1748739369813,1.86961054,104460.0,104450.0,0.03588943]
[1748739370203,1.77709932,104460.0,104450.0,0.04486496]
[1748739370446,1.77709932,104460.0,104450.0,0.03588943]
[1748739372324,1.77709932,104460.0,104450.0,0.04486495]
[1748739372508,1.77709932,104460.0,104450.0,0.03588943]
[1748739374072,1.77709932,104460.0,104450.0,0.04486494]
[1748739374455,1.77709932,104460.0,104450.0,0.03588943]
[1748739375507,1.77709932,104460.0,104450.0,0.04486494]
[1748739376138,1.77701932,104460.0,104450.0,0.04486486]
[1748739376346,1.77701932,104460.0,104450.0,0.03588943]